bitfinex/quotes_ETHUSD_20250715
["timestamp","ask_amount","ask_price","bid_price","bid_amount"]
[1752612058705,1.73034919,3047.7,3047.2,5.066]
[1752612058706,0.4377,3047.3,3047.2,5.066]
[1752612059933,3.719046,3047.6,3047.2,5.066]
[1752612060329,0.4377,3047.5,3047.2,5.066]
[1752612060696,0.7876,3047.7,3047.3,0.03281593]
[1752612060903,0.40682246,3048.1,3047.8,3.28101358]
[1752612060904,0.8233,3048.1,3047.8,3.28101358]
[1752612061101,1e-08,3048.2,3047.9,5.6794]
[1752612061321,1e-08,3048.2,3047.9,5.71220947]
[1752612061515,1e-08,3048.2,3048.0,0.30716131]
[1752612061718,1e-08,3048.2,3048.1,5.37316131]
[1752612062116,1e-08,3048.2,3048.1,5.066]
[1752612062319,1e-08,3048.2,3048.1,5.37315327]
[1752612063244,0.7821542,3048.2,3048.1,5.37315327]
[1752612063420,0.38815956,3048.2,3048.1,5.37315327]
[1752612063617,3.66878419,3048.2,3048.1,5.37315327]
[1752612065112,0.38815956,3048.2,3048.1,0.30715327]
[1752612065317,0.38815956,3048.2,3048.1,5.37317485]
[1752612065513,0.6017,3048.4,3048.1,5.37317485]
[1752612065814,3.280517,3048.3,3048.2,0.30717485]
[1752612066220,0.4377,3048.3,3048.2,0.30717485]
[1752612067026,0.8243,3048.5,3048.2,0.30717485]
[1752612067244,0.8243,3048.5,3048.3,5.37317485]
[1752612067543,0.001,3048.5,3048.4,0.30717485]
[1752612068338,0.001,3048.5,3048.4,0.30714891]
[1752612068548,0.001,3048.5,3048.4,4.14127319]
[1752612068842,0.001,3048.5,3048.4,4.75567319]
[1752612070145,0.001,3048.5,3048.4,4.78847728]
[1752612070941,0.001,3048.5,3048.4,5.56737728]
[1752612071141,0.001,3048.5,3048.4,5.56730189]
[1752612071510,0.001,3048.5,3048.4,5.26022837]
[1752612077041,0.001,3048.5,3048.4,10.32422837]
[1752612077332,0.001,3048.5,3048.4,10.29142428]
[1752612080367,1e-08,3048.5,3048.4,26.380866]
[1752612080549,1e-08,3048.5,3048.4,29.380866]
[1752612080726,1e-08,3048.5,3048.4,20.49142428]
[1752612080940,1e-08,3048.5,3048.4,15.42742428]
[1752612081272,0.04,3048.9,3048.8,3.279979]
[1752612081439,0.04,3048.9,3048.8,9.62997669]
[1752612081641,0.04,3048.9,3048.8,10.0400769]
[1752612083176,0.04,3048.9,3048.8,5.2262]
[1752612084167,0.04,3048.9,3048.8,8.506179]
[1752612086181,0.04,3048.9,3048.8,8.949079]
[1752612086746,0.04,3048.9,3048.8,9.753479]
[1752612087956,0.032644,3048.9,3048.8,9.753479]
[1752612088152,0.032644,3048.9,3048.8,11.05683502]
[1752612093695,0.032644,3048.9,3048.8,14.05683502]
[1752612099415,0.032644,3048.9,3048.8,14.60683502]
[1752612101012,0.032644,3048.9,3048.8,16.57683502]
[1752612102684,0.032644,3048.9,3048.8,21.25683502]
[1752612104306,0.032644,3048.9,3048.8,16.19383502]
[1752612104511,0.032644,3048.9,3048.8,21.25283502]
[1752612105815,0.032644,3048.9,3048.8,16.19383502]
[1752612106031,0.032644,3048.9,3048.8,21.25283502]
[1752612107817,0.032644,3048.9,3048.8,19.28283502]
[1752612108024,0.467544,3048.9,3048.8,8.502179]
[1752612108230,3.74741542,3048.9,3048.8,0.1632]
[1752612108536,3.74741542,3048.9,3048.7,5.059]
[1752612108537,4.098879,3048.8,3048.7,5.059]
[1752612108699,4.533779,3048.8,3048.7,5.059]
[1752612108899,5.33482891,3048.8,3048.7,5.059]
[1752612110122,2.05484991,3048.8,3048.7,5.059]
[1752612110324,1.2538,3048.8,3048.7,5.059]
[1752612111640,4.533779,3048.8,3048.7,5.059]
[1752612112009,1.2538,3048.8,3048.7,5.059]
[1752612112211,4.533779,3048.8,3048.7,5.059]
[1752612112518,0.8129,3048.6,3048.5,0.164]
[1752612112742,0.8129,3048.3,3048.0,0.002]
[1752612113061,0.8129,3048.3,3048.2,5.059]
[1752612113840,1.2478,3048.3,3048.2,5.059]
[1752612114226,0.8129,3048.3,3048.2,5.059]
[1752612114411,0.032644,3048.9,3048.3,3.2805131]
[1752612114755,0.7637,3048.8,3048.7,3.44328659]
[1752612114906,0.7637,3048.8,3048.7,8.50128659]
[1752612115642,0.7637,3048.8,3048.7,5.2212]
[1752612115840,1.1986,3048.8,3048.7,5.2212]
[1752612116508,0.7637,3048.8,3048.7,5.2212]
[1752612116910,1.1986,3048.8,3047.9,3.0]
[1752612117111,0.4349,3048.7,3048.3,0.164]
[1752612117331,1.21241097,3048.6,3048.4,5.058]
[1752612117530,0.4349,3048.5,3048.4,5.058]
[1752612119548,0.4349,3048.5,3048.4,8.33840939]
[1752612119755,0.8246,3048.6,3048.4,5.058]
[1752612119913,0.8246,3048.6,3048.4,8.33834466]
[1752612120648,0.4349,3048.5,3048.4,5.058]
[1752612121149,0.8246,3048.6,3048.4,8.33838227]
[1752612121509,0.801044,3048.9,3048.8,3.279979]
[1752612121707,0.801044,3048.9,3048.8,5.059]
[1752612122218,0.801044,3048.9,3048.8,8.338979]
[1752612122426,0.032644,3048.9,3048.8,8.338979]
[1752612123136,0.032644,3048.9,3048.8,5.059]
[1752612124018,0.032644,3048.9,3048.8,8.338979]
[1752612124329,0.032644,3048.9,3048.8,9.6640849]
[1752612124533,0.032644,3048.9,3048.8,5.2222]
[1752612124759,0.032644,3048.9,3048.8,8.502179]
[1752612126955,0.001,3049.8,3049.6,3.27911857]
[1752612127120,0.001,3049.8,3049.6,8.96561857]
[1752612127523,0.001,3049.8,3049.6,3.90761857]
[1752612127724,0.7871,3049.8,3049.6,5.2212]
[1752612128251,0.7871,3049.8,3049.6,8.50031857]
[1752612129341,0.001,3049.8,3049.6,8.50031857]
[1752612129520,0.001,3049.8,3049.6,8.96561857]
[1752612129724,0.001,3049.8,3049.6,10.27053274]
[1752612131361,0.001,3049.8,3049.6,5.21253274]
[1752612131543,0.001,3049.8,3049.6,8.96461857]
[1752612133738,0.001,3049.8,3049.6,9.27133091]
[1752612135563,0.001,3049.8,3049.6,12.27133091]
[1752612136360,0.001,3049.8,3049.6,12.82133091]
[1752612136562,0.001,3049.8,3049.6,15.59715131]
[1752612136772,32.68625054,3049.7,3049.6,15.59715131]
[1752612137156,32.68625054,3049.7,3049.6,10.54015131]
[1752612137363,32.68625054,3049.7,3049.6,15.59615131]
[1752612137580,32.68625054,3049.7,3049.6,15.03705131]
[1752612137740,32.68625054,3049.7,3049.6,9.98105131]
[1752612137941,32.68625054,3049.7,3049.6,12.26123091]
[1752612138985,32.68625054,3049.7,3049.6,11.95451857]
[1752612140980,32.68625054,3049.7,3049.6,12.50451857]
[1752612142276,27.23279279,3049.7,3049.6,13.27151857]
[1752612142476,0.001,3050.2,3049.9,3.55]
[1752612142647,0.001,3050.2,3050.1,3.27858103]
[1752612142850,0.001,3050.2,3050.1,3.44178103]
[1752612143056,0.001,3050.2,3050.1,4.44798103]
[1752612144831,0.001,3050.2,3050.1,4.48076684]
[1752612144982,0.001,3050.2,3050.1,7.14754738]
[1752612145183,0.001,3050.2,3050.1,7.11476157]
[1752612145366,0.001,3050.2,3050.1,12.16876157]
[1752612147380,0.001,3050.2,3050.1,12.98446157]
[1752612147707,0.001,3050.2,3050.1,11.71256157]
[1752612147862,0.001,3050.2,3050.1,6.65856157]
[1752612148069,0.001,3050.2,3050.1,0.1632]
[1752612148268,0.4754,3050.2,3050.1,0.1632]
[1752612148501,0.4754,3050.2,3050.1,8.49478103]
[1752612148708,0.001,3050.2,3050.1,8.49478103]
[1752612149069,0.001,3050.2,3050.1,8.95098103]
[1752612149269,0.001,3050.2,3050.1,11.80333229]
[1752612150278,0.001,3050.2,3050.1,17.03333229]
[1752612150976,0.001,3050.2,3050.1,24.25876076]
[1752612152079,0.001,3050.2,3050.1,18.65576076]
[1752612152282,0.001,3050.2,3050.1,23.70876076]
[1752612155815,0.001,3050.2,3050.1,19.02876076]
[1752612159226,0.001,3050.2,3050.1,13.97576076]
[1752612159527,0.001,3050.2,3050.1,8.49378103]
[1752612161712,0.001,3050.2,3050.1,3.44178103]
[1752612161904,0.001,3050.2,3050.1,8.49378103]
[1752612164499,0.4754,3050.2,3050.1,0.1632]
[1752612164820,1.285,3050.2,3050.1,0.1632]
[1752612165144,1.285,3050.2,3049.7,7.872]
[1752612165445,1.2223,3050.1,3049.9,0.002]
[1752612165647,0.45017817,3050.0,3049.9,0.002]
[1752612165850,0.4714,3050.0,3049.9,5.053]
[1752612166312,0.4714,3050.0,3049.9,0.002]
[1752612166518,0.4714,3050.0,3049.9,5.054]
[1752612166706,0.7509,3050.1,3049.9,5.054]
[1752612166921,0.001,3050.2,3049.9,5.054]
[1752612167205,0.001,3050.2,3050.1,3.27858103]
[1752612167423,0.001,3050.2,3050.1,8.32958103]
[1752612167790,0.001,3050.2,3050.1,5.051]
[1752612167995,0.001,3050.2,3050.1,5.35785878]
[1752612168196,0.001,3050.2,3050.1,8.63643981]
[1752612168430,0.001,3050.2,3050.1,9.72007797]
[1752612169207,0.001,3050.2,3050.1,9.72015863]
[1752612169797,0.001,3050.2,3050.1,9.72022426]
[1752612170538,0.001,3050.2,3050.1,10.18682426]
[1752612174783,0.001,3050.2,3050.1,9.72022426]
[1752612175057,0.001,3050.2,3050.1,8.6365861]
[1752612175256,0.001,3050.2,3050.1,8.32958103]
[1752612179459,0.001,3050.2,3050.1,8.32858103]
[1752612186072,0.001,3050.2,3050.1,3.27858103]
[1752612186436,0.001,3050.2,3050.1,8.32858103]
[1752612187089,0.001,3050.2,3050.1,3.27858103]
[1752612187376,0.001,3050.2,3050.1,8.32858103]
[1752612188886,0.001,3050.2,3050.1,10.28531604]
[1752612189045,0.001,3050.2,3050.1,9.94591604]
[1752612189247,0.001,3050.2,3050.1,9.47931604]
[1752612189446,0.001,3050.2,3050.1,9.94591604]
[1752612189790,0.001,3050.2,3050.1,9.94491604]
[1752612190275,0.001,3050.2,3050.0,3.44188114]
[1752612190474,0.001,3050.2,3050.1,5.049]
[1752612192065,0.001,3050.2,3050.1,8.36036684]
[1752612192269,0.001,3050.2,3050.1,3.27858103]
[1752612192471,0.001,3050.2,3050.1,8.36036684]
[1752612192791,0.001,3050.2,3050.1,9.55466635]
[1752612192995,0.001,3050.2,3050.1,10.02126635]
[1752612193204,0.001,3050.2,3050.1,10.82726635]
[1752612193697,0.001,3050.2,3050.1,10.02126635]
[1752612197291,0.001,3050.2,3050.1,4.97226635]
[1752612197482,0.001,3050.2,3050.1,10.05305216]
[1752612197678,0.001,3050.2,3050.1,4.97226635]
[1752612197858,0.001,3050.2,3050.1,10.05305216]
[1752612198062,0.001,3050.2,3050.1,10.02026635]
[1752612198861,0.001,3050.2,3050.1,10.57026635]
[1752612199198,0.001,3050.2,3050.1,11.39866635]
[1752612201402,1e-08,3050.2,3050.1,14.39866635]
[1752612201576,1e-08,3050.3,3050.2,7.10687354]
[1752612201763,1e-08,3050.3,3050.2,10.92843568]
[1752612201967,1e-08,3050.3,3050.2,11.09163568]
[1752612203505,1e-08,3050.3,3050.2,11.64163568]
[1752612204400,1e-08,3050.3,3050.2,11.17673568]
[1752612204600,1e-08,3050.3,3050.2,16.68863568]
[1752612204994,1e-08,3050.3,3050.2,14.84533568]
[1752612205305,1e-08,3050.3,3050.2,11.48867354]
[1752612206008,1e-08,3050.3,3050.2,11.95357354]
[1752612206705,1e-08,3050.3,3050.2,12.50357354]
[1752612206885,1e-08,3050.3,3050.2,13.26107354]
[1752612210413,1e-08,3050.3,3050.2,8.21407354]
[1752612210705,1e-08,3050.3,3050.2,11.48767354]
[1752612211289,1e-08,3050.3,3050.2,8.2092]
[1752612211485,1.26660001,3050.3,3050.2,0.1632]
[1752612211689,1.26660001,3050.3,3050.2,5.2092]
[1752612212916,1.26660001,3050.3,3049.9,0.002]
[1752612213212,0.8093,3050.0,3049.9,0.002]
[1752612213508,4.54251423,3050.0,3049.9,0.002]
[1752612213680,4.54528852,3050.0,3049.9,0.002]
[1752612213875,1.2666,3050.0,3049.9,0.002]
[1752612214077,0.8093,3050.0,3049.9,0.002]
[1752612214299,0.8093,3050.0,3049.9,5.048]
[1752612214913,1.2666,3050.0,3049.9,5.048]
[1752612215110,4.95407491,3050.0,3049.9,0.002]
[1752612215312,4.95407491,3050.0,3049.9,5.048]
[1752612215704,4.95407491,3050.0,3049.9,0.002]
[1752612217614,1.67538639,3050.0,3049.9,0.002]
[1752612217813,0.8093,3050.0,3049.9,0.002]
[1752612220094,0.77630001,3050.3,3049.9,0.002]
[1752612220295,0.77630001,3050.3,3050.1,3.27851721]
[1752612221699,1e-08,3050.3,3050.2,3.27847354]
[1752612221999,1e-08,3050.3,3050.2,3.31125827]
[1752612222200,1e-08,3050.3,3050.2,4.32489449]
[1752612223010,1e-08,3050.3,3050.2,4.48809449]
[1752612223214,1e-08,3050.3,3050.2,9.99899449]
[1752612223412,1e-08,3050.3,3050.2,9.96620976]
[1752612232637,1e-08,3050.3,3050.2,10.51620976]
[1752612232927,1e-08,3050.3,3050.2,11.34620976]
[1752612233232,1e-08,3050.3,3050.2,13.31620976]
[1752612234295,1e-08,3050.3,3050.2,5.83530976]
[1752612234630,1e-08,3050.3,3050.2,0.1632]
[1752612234949,4.51576607,3050.3,3050.2,0.1632]
[1752612235246,4.51576607,3050.3,3050.1,5.046]
[1752612235247,4.05637354,3050.2,3050.1,5.046]
[1752612235452,4.51587354,3050.2,3050.1,0.002]
[1752612235612,6.03416085,3050.2,3050.1,0.002]
[1752612237709,0.7779,3050.2,3050.1,3.28058103]
[1752612237933,1e-08,3050.3,3050.2,3.27847354]
[1752612238113,1e-08,3050.3,3050.2,11.75700201]
[1752612238433,1e-08,3050.3,3050.2,4.53157354]
[1752612238733,1e-08,3050.3,3050.2,5.86629337]
[1752612239436,1e-08,3050.3,3050.2,4.58040864]
[1752612240039,1e-08,3050.3,3050.2,4.61319337]
[1752612240732,1e-08,3050.3,3050.2,10.11329337]
[1752612240941,1e-08,3050.3,3050.2,10.08050864]
[1752612241102,1e-08,3050.3,3050.2,20.30593711]
[1752612241324,1e-08,3050.3,3050.2,21.65293711]
[1752612241530,0.001,3051.1,3051.0,4.07461389]
[1752612241838,0.001,3051.5,3051.1,3.27750647]
[1752612242021,0.001,3051.5,3051.4,14.05261271]
[1752612242221,0.001,3051.5,3051.4,19.09661271]
[1752612242423,0.7994,3053.2,3052.8,3.27568134]
[1752612242631,0.04,3052.9,3052.8,5.044]
[1752612242831,0.4995,3052.9,3052.8,5.044]
[1752612244762,0.4995,3052.9,3051.9,0.55]
[1752612244763,0.4995,3052.9,3051.9,3.27661787]
[1752612244938,0.4995,3052.9,3051.8,3.27667714]
[1752612244939,3.27610182,3052.5,3051.8,3.27667714]
[1752612245134,0.761,3052.4,3051.9,0.03276647]
[1752612245461,0.761,3052.4,3052.0,5.042]
[1752612245621,1.2205,3052.4,3052.0,5.042]
[1752612245821,1.2205,3052.4,3052.0,8.3513039]
[1752612246039,1.2205,3052.4,3052.0,8.31853851]
[1752612246264,1.2205,3052.4,3052.0,5.042]
[1752612246521,0.4595,3052.7,3052.3,3.27618377]
[1752612246766,0.04,3052.9,3052.4,5.4981]
[1752612246943,0.04,3052.9,3052.7,3.27572086]
[1752612247267,0.04,3052.9,3052.8,8.31768134]
[1752612247765,0.04,3052.9,3052.8,5.042]
[1752612248341,0.04,3052.9,3052.8,8.31768134]
[1752612248684,0.4995,3052.9,3052.8,5.042]
[1752612248831,0.04,3052.9,3052.8,5.042]
[1752612249172,0.04,3052.9,3052.8,8.31768134]
[1752612249537,0.04,3052.9,3052.8,5.042]
[1752612250861,0.04,3052.9,3052.3,3.73230806]
[1752612251062,0.4995,3052.9,3052.4,8.31709836]
[1752612251269,0.4995,3052.9,3052.6,3.27588013]
[1752612251435,0.4995,3052.9,3052.7,5.041]
[1752612252970,0.4995,3052.9,3052.6,0.1632]
[1752612252971,0.9694081,3052.9,3052.6,0.1632]
[1752612253129,0.4595,3052.8,3052.7,5.04]
[1752612254077,3.73518134,3052.8,3052.7,5.04]
[1752612254375,0.8094,3052.7,3052.4,0.1632]
[1752612254562,4.08524809,3052.7,3052.4,5.2032]
[1752612254738,0.4595,3052.6,3052.4,5.2032]
[1752612254942,5.34721009,3052.7,3052.4,5.2032]
[1752612255245,1.2689,3052.7,3052.4,5.2032]
[1752612255440,0.469,3052.6,3052.5,5.04]
[1752612255641,3.74492826,3052.6,3052.5,5.04]
[1752612256253,0.469,3052.6,3052.5,5.04]
[1752612256789,3.74493826,3052.6,3052.5,5.04]
[1752612256989,4.54427275,3052.6,3052.5,5.04]
[1752612257783,1.26833449,3052.6,3052.5,5.04]
[1752612258088,4.54428278,3052.6,3052.5,5.04]
[1752612258792,1.26833449,3052.6,3052.5,5.04]
[1752612258945,3.74494866,3052.6,3052.5,5.04]
[1752612260994,3.27621793,3052.3,3051.9,0.002]
[1752612261169,0.1632,3052.3,3052.0,5.04]
[1752612261376,0.469,3052.2,3052.0,5.04]
[1752612261885,0.1632,3052.3,3052.0,5.04]
[1752612262087,0.1632,3052.7,3052.3,3.27615192]
[1752612262401,0.8032,3052.8,3052.5,3.27592992]
[1752612262570,0.8032,3052.8,3052.6,0.1632]
[1752612262768,0.8032,3052.8,3052.7,5.04]
[1752612264166,0.8032,3052.8,3052.5,0.1632]
[1752612264365,0.8032,3052.8,3052.7,5.04]
[1752612265900,0.8032,3052.8,3052.5,0.1632]
[1752612266069,0.041,3052.9,3052.6,5.039]
[1752612266272,0.041,3052.9,3052.6,6.56699844]
[1752612266599,0.041,3052.9,3052.8,3.43888134]
[1752612266965,0.041,3052.9,3052.8,3.89248134]
[1752612267195,0.041,3052.9,3052.8,0.6168]
[1752612268301,0.041,3052.9,3052.8,3.89248134]
[1752612270318,0.041,3052.9,3052.8,3.47163815]
[1752612270613,0.041,3052.9,3052.8,3.43888134]
[1752612271393,0.041,3052.9,3052.8,5.039]
[1752612271597,0.51,3052.9,3052.8,5.039]
[1752612272803,1.3128,3052.9,3052.8,5.039]
[1752612273198,1.3128,3052.9,3052.6,3.27589577]
[1752612273536,3.43906949,3052.7,3052.6,5.039]
[1752612273697,3.90806949,3052.7,3052.6,5.039]
[1752612273899,0.6322,3052.7,3052.6,5.039]
[1752612274730,3.90803835,3052.7,3052.5,5.039]
[1752612275634,1.2355,3052.6,3051.9,5.041]
[1752612275801,3.27636271,3052.2,3051.9,5.2042]
[1752612275997,3.27653997,3052.0,3051.9,0.002]
[1752612276208,0.9297,3052.0,3051.9,0.002]
[1752612277329,4.20623997,3052.0,3051.9,0.002]
[1752612277697,0.9297,3052.0,3051.9,0.002]
[1752612278112,4.67523997,3052.0,3051.9,0.002]
[1752612278713,1.3987,3052.0,3051.9,0.002]
[1752612279013,4.67523997,3052.0,3051.9,0.002]
[1752612279937,0.9297,3052.0,3051.9,0.002]
[1752612280150,0.9279,3052.3,3052.0,3.27647989]
[1752612280301,0.9279,3052.3,3052.1,5.039]
[1752612281524,0.1632,3052.3,3052.1,5.039]
[1752612281834,0.1632,3052.3,3052.1,8.76896105]
[1752612282650,0.1632,3052.3,3052.2,3.27632527]
[1752612282852,0.792,3052.6,3052.2,4.59865472]
[1752612283022,0.792,3052.6,3052.2,0.1632]
[1752612284846,0.792,3052.6,3052.2,3.43950578]
[1752612285359,0.792,3052.6,3052.2,0.1632]
[1752612286055,0.4587,3052.5,3051.9,0.002]
[1752612286360,0.7592,3052.0,3051.9,0.002]
[1752612286578,4.03573997,3052.0,3051.9,0.002]
[1752612286745,5.24197784,3052.0,3051.9,0.002]
[1752612287462,8.24197784,3052.0,3051.9,0.002]
[1752612288867,7.03573997,3052.0,3051.9,0.002]
[1752612289432,7.49443997,3052.0,3051.9,0.002]
[1752612294455,12.53443997,3052.0,3051.9,0.002]
[1752612294967,7.49443997,3052.0,3051.9,0.002]
[1752612295149,12.53443997,3052.0,3051.9,0.002]
[1752612295591,4.03573997,3052.0,3051.9,0.002]
[1752612297591,4.03673997,3052.0,3051.9,0.002]
[1752612299362,5.73075737,3052.0,3051.9,0.002]
[1752612300475,3.27753997,3052.0,3051.9,0.002]
[1752612300957,0.001,3052.0,3051.9,0.002]
[1752612301163,3.27753997,3052.0,3051.9,0.002]
[1752612309906,0.001,3052.0,3051.9,0.002]
[1752612310104,0.001,3052.0,3051.9,4.50314733]
[1752612310342,0.001,3052.0,3051.9,5.28113668]
[1752612311262,0.001,3052.0,3051.9,10.35390315]
[1752612311415,0.001,3052.0,3051.9,10.48433668]
[1752612318092,0.001,3052.0,3051.9,13.48433668]
[1752612318272,0.001,3052.0,3051.9,14.03433668]
[1752612319262,0.001,3052.0,3051.9,14.27425032]
[1752612321392,0.001,3052.0,3051.9,14.03433668]
[1752612326482,0.001,3052.0,3051.9,19.45233668]
[1752612326666,0.001,3052.0,3051.9,14.03433668]
[1752612331936,0.001,3052.0,3051.9,8.44433668]
[1752612332147,0.001,3052.0,3051.9,3.44184733]
[1752612332286,0.001,3052.0,3051.9,8.47884733]
[1752612333500,0.001,3052.0,3051.9,8.93314733]
[1752612334336,0.001,3052.0,3051.9,9.70954733]
[1752612338309,0.001,3052.0,3051.9,4.67254733]
[1752612338620,0.001,3052.0,3051.9,8.47884733]
[1752612338987,0.001,3052.0,3051.9,3.44184733]
[1752612339184,0.001,3052.0,3051.9,8.47884733]
[1752612339589,0.001,3052.0,3051.9,8.93314733]
[1752612339799,0.001,3052.0,3051.9,10.15413681]
[1752612340497,0.001,3052.0,3051.9,11.53143681]
[1752612341095,0.001,3052.0,3051.9,14.53143681]
[1752612343589,0.001,3052.0,3051.9,9.49443681]
[1752612343789,0.001,3052.0,3051.9,14.53143681]
[1752612345844,0.041,3052.9,3052.7,3.27572876]
[1752612346040,0.041,3052.9,3052.8,5.036]
[1752612346411,0.041,3052.9,3052.8,8.31168134]
[1752612346941,0.041,3052.9,3052.8,5.036]
[1752612347137,0.041,3052.9,3052.8,8.31168134]
[1752612347543,0.041,3052.9,3052.8,8.47488134]
[1752612348518,0.041,3052.9,3052.8,5.1992]
[1752612348722,0.041,3052.9,3052.8,8.47488134]
[1752612349546,0.041,3052.9,3052.8,5.1992]
[1752612349920,0.041,3052.9,3052.8,0.1632]
[1752612350241,1.66735088,3052.9,3052.8,5.036]
[1752612351171,0.7881,3052.6,3051.9,0.002]
[1752612351349,0.7881,3052.6,3052.4,3.27603711]
[1752612351511,0.7881,3052.6,3052.5,5.036]
[1752612351731,1.2362,3052.6,3052.5,5.036]
[1752612356082,3.43892555,3052.8,3052.2,0.98]
[1752612356285,3.27579936,3052.7,3052.2,0.1632]
[1752612356457,0.7997,3052.3,3051.9,0.002]
[1752612356795,0.7997,3052.3,3052.0,5.035]
[1752612356796,3.27638989,3052.2,3052.0,5.035]
[1752612357093,0.4481,3052.1,3052.0,5.035]
[1752612357690,0.9629,3052.3,3052.0,5.035]
[1752612357860,0.9629,3052.3,3051.9,0.002]
[1752612358056,0.9629,3052.3,3052.0,5.035]
[1752612358289,0.4481,3052.2,3052.0,5.035]
[1752612358445,0.4481,3052.1,3052.0,5.035]
[1752612358637,0.4481,3052.1,3051.9,3.27863363]
[1752612358841,0.4481,3052.1,3052.0,5.035]
[1752612359292,1.71440962,3052.3,3052.0,8.31153054]
[1752612359494,1.71440962,3052.3,3052.0,5.035]
[1752612359653,2.16250962,3052.3,3052.0,5.035]
[1752612360573,2.16250962,3052.3,3051.9,3.27860305]
[1752612360773,2.16250962,3052.3,3052.0,5.035]
[1752612361303,0.1632,3052.3,3052.0,5.035]
[1752612361457,0.041,3052.9,3052.2,0.1632]
[1752612361799,0.041,3052.9,3052.8,3.27568134]
[1752612362001,0.041,3052.9,3052.8,9.75763815]
[1752612362206,0.041,3052.9,3052.8,11.74994803]
[1752612365296,0.041,3052.9,3052.8,6.71494803]
[1752612365500,0.041,3052.9,3052.8,8.47388134]
[1752612366807,0.041,3052.9,3052.8,8.94648134]
[1752612367682,0.041,3052.9,3052.8,3.43888134]
[1752612367882,0.041,3052.9,3052.8,8.47288134]
[1752612368438,0.041,3052.9,3052.8,8.94548134]
[1752612368591,0.041,3052.9,3052.8,10.16760812]
[1752612369893,0.041,3052.9,3052.8,9.69500812]
[1752612370431,0.041,3052.9,3052.8,0.1632]
[1752612370711,1.2601,3052.9,3052.8,5.034]
[1752612376121,0.812,3052.9,3052.8,5.034]
[1752612376316,0.041,3052.9,3052.8,8.30968134]
[1752612376630,0.041,3052.9,3052.8,5.034]
[1752612377535,0.041,3052.9,3052.8,5.033]
[1752612377735,0.4715,3052.9,3052.8,5.033]
[1752612378047,0.041,3052.9,3052.8,5.033]
[1752612379731,0.4715,3052.9,3052.8,5.033]
[1752612380137,0.041,3052.9,3052.8,5.033]
[1752612381640,0.4715,3052.9,3052.8,5.033]
[1752612381871,0.4715,3052.9,3052.4,0.1632]
[1752612381872,3.27596019,3052.6,3052.4,0.1632]
[1752612382077,7.21724548,3052.6,3052.2,0.1632]
[1752612382367,1.2617,3052.5,3052.3,5.033]
[1752612382557,0.8312,3052.5,3052.3,5.033]
[1752612384380,0.4305,3052.4,3052.3,5.033]
[1752612385633,0.8312,3052.5,3052.0,0.1652]
[1752612385937,0.1632,3052.2,3052.1,5.033]
[1752612386337,0.5937,3052.2,3052.1,5.033]
[1752612387129,0.1632,3052.2,3052.1,5.033]
[1752612387354,0.8304,3052.1,3052.0,0.002]
[1752612387535,4.10683262,3052.1,3052.0,5.035]
[1752612387759,5.71279043,3052.1,3052.0,5.035]
[1752612388082,5.71279043,3052.1,3052.0,0.002]
[1752612394200,5.28229043,3052.1,3052.0,0.002]
[1752612395685,4.10683262,3052.1,3052.0,0.002]
[1752612396295,0.8304,3052.1,3052.0,0.002]
[1752612397623,0.1632,3052.3,3052.0,0.002]
[1752612398186,0.1632,3052.3,3052.1,3.27637045]
[1752612398405,0.7557,3052.7,3052.2,3.27626342]
[1752612398406,0.1632,3052.5,3052.2,3.27626342]
[1752612398575,0.1632,3052.5,3052.1,3.27639944]
[1752612399818,0.1632,3052.8,3052.7,3.2757235]
[1752612399966,0.041,3052.9,3052.8,3.27568134]
[1752612400790,0.041,3052.9,3052.8,4.52932798]
[1752612400992,0.041,3052.9,3052.8,4.69252798]
[1752612403308,0.041,3052.9,3052.8,0.1632]
[1752612403467,0.041,3052.9,3052.8,5.032]
[1752612404167,0.041,3052.9,3052.8,8.30768134]
[1752612405308,0.041,3052.9,3052.8,8.47088134]
[1752612407173,0.041,3052.9,3052.8,3.43888134]
[1752612407384,0.041,3052.9,3052.8,9.22022833]
[1752612411412,0.041,3052.9,3052.8,5.94454699]
[1752612411585,0.041,3052.9,3052.8,0.91354699]
[1752612411786,0.041,3052.9,3052.8,4.18922833]
[1752612411998,0.041,3052.9,3052.8,5.1942]
[1752612412720,3.31657404,3052.9,3052.4,0.8139]
[1752612412882,3.27571003,3052.8,3052.5,5.1932]
[1752612413078,3.31663444,3052.9,3052.5,5.1932]
[1752612413736,0.041,3052.9,3052.5,5.1932]
[1752612413906,3.31657712,3052.9,3052.5,6.04012972]
[1752612414400,3.27568171,3052.8,3052.5,5.1932]
[1752612415282,3.31661315,3052.9,3052.5,5.1932]
[1752612415681,0.041,3052.9,3052.5,8.46914465]
[1752612416600,0.041,3052.9,3052.6,0.7773]
[1752612416797,0.041,3052.9,3052.7,5.03]
[1752612421287,0.041,3052.9,3052.8,3.27568134]
[1752612421493,0.041,3052.9,3052.8,3.43888134]
[1752612421817,0.041,3052.9,3052.8,4.21618134]
[1752612424946,0.041,3052.9,3052.6,3.27583436]
[1752612425246,0.041,3052.9,3052.7,5.43936344]
[1752612425406,0.041,3052.9,3052.7,5.029]
[1752612426722,0.041,3052.9,3052.7,8.30478395]
[1752612427348,0.041,3052.9,3052.8,3.89528134]
[1752612430340,0.041,3052.9,3052.8,11.86512682]